fUST/lending_fUST_20250612
["ID","MTS","AMOUNT","RATE_DAILY","PERIOD"]
[365506644,1749720640735,-463.81494935,0.00021095,4]
[365506645,1749720640744,-766.48,0.00021095,4]
[365506646,1749720640753,-460.0,0.00021095,4]
[365506647,1749720640762,-605.52298959,0.00021095,4]
[365506648,1749720640771,-460.0,0.00021095,4]
[365506649,1749720640780,-460.0,0.00021095,4]
[365506650,1749720640790,-399.53631282,0.00021095,4]
[365506651,1749720640799,-460.0,0.00021095,4]
[365506652,1749720640808,-460.0,0.00021095,4]
[365506653,1749720640817,-460.0,0.00021095,4]
[365506654,1749720640826,-460.0,0.00021095,4]
[365506655,1749720640836,-460.0,0.00021095,4]
[365506656,1749720640845,-460.0,0.00021095,4]
[365506657,1749720640854,-460.0,0.00021095,4]
[365506658,1749720640863,-460.0,0.00021095,4]
[365506659,1749720640872,-468.68874601,0.00021095,4]
[365506660,1749720640881,-460.0,0.00021095,4]
[365506661,1749720640890,-460.0,0.00021095,4]
[365506663,1749720640899,-418.5610917,0.00021095,4]
[365506664,1749720640908,-460.0,0.00021095,4]
[365506665,1749720640917,-460.0,0.00021095,4]
[365506666,1749720640926,-460.0,0.00021095,4]
[365506667,1749720640935,-460.0,0.00021095,4]
[365506669,1749720640946,-460.0,0.00021095,4]
[365506670,1749720640957,-460.0,0.00021095,4]
[365506671,1749720640966,-551.12,0.00021095,4]
[365506672,1749720640974,-460.0,0.00021095,4]
[365506673,1749720640983,-460.0,0.00021095,4]
[365506674,1749720640992,-461.24180096,0.00021095,4]
[365506675,1749720641001,-460.0,0.00021095,4]
[365506676,1749720641010,-552.73,0.00021095,4]
[365506677,1749720641019,-460.0,0.00021095,4]
[365506678,1749720641028,-460.0,0.00021095,4]
[365506679,1749720641038,-460.0,0.00021095,4]
[365506680,1749720641047,-460.0,0.00021095,4]
[365506681,1749720641056,-460.0,0.00021095,4]
[365506682,1749720641065,-460.0,0.00021095,4]
[365506683,1749720641074,-460.0,0.00021095,4]
[365506684,1749720641083,-460.0,0.00021095,4]
[365506685,1749720641092,-460.0,0.00021095,4]
[365506686,1749720641101,-450.0715687,0.00021095,4]
[365506687,1749720641110,-460.0,0.00021095,4]
[365506688,1749720641120,-460.0,0.00021095,4]
[365506689,1749720641129,-569.22455519,0.00021095,4]
[365506690,1749720641139,-1227.47,0.00021095,4]
[365506691,1749720641148,-460.0,0.00021095,4]
[365506692,1749720641157,-460.0,0.00021095,4]
[365506693,1749720641166,-460.0,0.00021095,4]
[365506694,1749720641175,-460.0,0.00021095,4]
[365506695,1749720641184,-460.0,0.00021095,4]
[365506696,1749720641194,-460.0,0.00021095,4]
[365506697,1749720641204,-460.0,0.00021095,4]
[365506698,1749720641213,-278.43865956,0.00021095,4]
[365506699,1749720641222,-527.02,0.00021095,4]
[365506700,1749720641231,-460.0,0.00021095,4]
[365506701,1749720641241,-460.0,0.00021095,4]
[365506702,1749720641250,-460.0,0.00021095,4]
[365506703,1749720641259,-433.214834,0.00021095,4]
[365506704,1749720641268,-460.0,0.00021095,4]
[365506705,1749720641278,-487.19684581,0.00021095,4]
[365506706,1749720641286,-390.0,0.00021095,4]
[365506707,1749720641295,-460.0,0.00021095,4]
[365506708,1749720641304,-1329.7,0.00021095,4]
[365506709,1749720641313,-460.0,0.00021095,4]
[365506710,1749720641323,-460.0,0.00021095,4]
[365506711,1749720641332,-475.22798476,0.00021095,4]
[365506712,1749720641341,-460.0,0.00021095,4]
[365506713,1749720641350,-460.0,0.00021095,4]
[365506714,1749720641360,-460.0,0.00021095,4]
[365506715,1749720641369,-460.0,0.00021095,4]
[365506716,1749720641378,-460.0,0.00021095,4]
[365506717,1749720641388,-460.0,0.00021095,4]
[365506718,1749720641398,-460.0,0.00021095,4]
[365506719,1749720641407,-423.57165707,0.00021095,4]
[365506720,1749720641417,-461.19845632,0.00021095,4]
[365506721,1749720641426,-460.0,0.00021095,4]
[365506722,1749720641435,-460.0,0.00021095,4]
[365506723,1749720641446,-460.0,0.00021095,4]
[365506724,1749720641455,-421.9860729,0.00021095,4]
[365506725,1749720641464,-362.95478931,0.00021095,4]
[365506726,1749720641473,-460.0,0.00021095,4]
[365506727,1749720641483,-1011.31,0.00021095,4]
[365506728,1749720641492,-420.0,0.00021095,4]
[365506729,1749720641503,-460.0,0.00021095,4]
[365506730,1749720641515,-460.0,0.00021095,4]
[365506731,1749720641524,-460.0,0.00021095,4]
[365506732,1749720641534,-460.0,0.00021095,4]
[365506733,1749720641543,-565.92,0.00021095,4]
[365506734,1749720641553,-460.0,0.00021095,4]
[365506735,1749720641562,-460.0,0.00021095,4]
[365506736,1749720641572,-460.0,0.00021095,4]
[365506737,1749720641582,-423.20732303,0.00021095,4]
[365506738,1749720641592,-460.0,0.00021095,4]
[365506739,1749720641601,-471.62,0.00021095,4]
[365506740,1749720641610,-460.14387784,0.00021095,4]
[365506741,1749720641619,-462.41544982,0.00021095,4]
[365506742,1749720641629,-1078.77,0.00021095,4]
[365506743,1749720641638,-413.86317913,0.00021095,4]
[365506744,1749720641647,-355.37600296,0.00021095,4]
[365506745,1749720641657,-460.0,0.00021095,4]
[365506746,1749720641667,-597.94551901,0.00021095,4]
[365506747,1749720641676,-460.0,0.00021095,4]
[365506748,1749720641685,-460.0,0.00021095,4]
[365506749,1749720641696,-460.0,0.00021095,4]
[365506750,1749720641705,-1101.83,0.00021095,4]
[365506751,1749720641714,-1242.04,0.00021095,4]
[365506752,1749720641723,-460.0,0.00021095,4]
[365506753,1749720641732,-460.0,0.00021095,4]
[365506754,1749720641742,-460.0,0.00021095,4]
[365506755,1749720641752,-416.03447701,0.00021095,4]
[365506756,1749720641762,-460.0,0.00021095,4]
[365506757,1749720641771,-460.0,0.00021095,4]
[365506758,1749720641781,-460.0,0.00021095,4]
[365506759,1749720641883,-467.44224363,0.00021095,4]
[365506760,1749720641893,-460.0,0.00021095,4]
[365506761,1749720641903,-460.0,0.00021095,4]
[365506762,1749720641912,-227.01886849,0.00021095,4]
[365506763,1749720641922,-460.0,0.00021095,4]
[365506764,1749720641931,-460.0,0.00021095,4]
[365506765,1749720641940,-1050.97975101,0.00021107,4]
[365506766,1749720641950,-160.0,0.00021125,2]
[365506767,1749720641959,-160.0,0.00021125,2]
[365506768,1749720641968,-213.20212768,0.00021125,2]
[365506769,1749720641977,-835.15920933,0.00021125,2]
[365506770,1749720641986,-229.7508257,0.00021125,2]
[365506771,1749720641996,-160.0,0.00021125,2]
[365506772,1749720642005,-424.26423502,0.00021125,2]
[365506773,1749720642015,-160.0,0.00021125,2]
[365506774,1749720642024,-500.0,0.00021125,2]
[365506775,1749720642034,-500.0,0.00021127,2]
[365506776,1749720642043,-420.0,0.00021175,2]
[365506777,1749720642053,-153.68665769,0.00021199,4]
[365506778,1749720642063,-151.0,0.000212,3]
[365506779,1749720642072,-160.0,0.00021239,2]
[365506780,1749720642081,-160.0,0.00021239,2]
[365506781,1749720642090,-160.0,0.00021239,2]
[365506782,1749720642099,-160.0,0.00021239,2]
[365506783,1749720642108,-175.0,0.00021278,2]
[365506784,1749720642117,-1050.97975101,0.00021279,5]
[365506785,1749720642127,-507.27027264,0.00021292,2]
[365506786,1749720642136,-507.88565714,0.00021292,2]
[365506787,1749720642145,-1000.0,0.00021304,2]
[365506788,1749720642155,-500.0,0.00021362,2]
[365506789,1749720642163,-507.06452997,0.00021362,2]
[365506790,1749720642173,-500.43084723,0.00021362,2]
[365506791,1749720642182,-428.80843973,0.00021367,2]
[365506792,1749720642193,-501.21299419,0.00021367,2]
[365506793,1749720642203,-500.0,0.00021367,2]
[365506794,1749720642212,-500.0,0.00021367,2]
[365506795,1749720642221,-476.02862268,0.00021369,4]
[365506796,1749720642231,-460.0,0.00021369,4]
[365506797,1749720642241,-460.0,0.00021369,4]
[365506798,1749720642252,-460.0,0.00021369,4]
[365506799,1749720642262,-460.0,0.00021369,4]
[365506800,1749720642271,-460.0,0.00021369,2]
[365506801,1749720642281,-357.59566668,0.00021369,4]
[365506802,1749720642290,-474.39542613,0.00021369,4]
[365506803,1749720642299,-460.0,0.00021369,4]
[365506804,1749720642308,-460.0,0.00021369,4]
[365506805,1749720642317,-460.0,0.00021369,4]
[365506806,1749720642326,-340.91412148,0.00021369,4]
[365506807,1749720642335,-460.0,0.00021369,4]
[365506808,1749720642345,-460.0,0.00021369,4]
[365506809,1749720642355,-460.0,0.00021369,4]
[365506810,1749720642364,-476.80991778,0.00021369,4]
[365506812,1749720642373,-460.0,0.00021369,4]
[365506813,1749720642382,-438.3652818,0.00021369,4]
[365506814,1749720642391,-460.0,0.00021369,4]
[365506815,1749720642401,-453.04895585,0.00021369,4]
[365506816,1749720642410,-460.0,0.00021369,4]
[365506817,1749720642420,-460.0,0.00021369,4]
[365506818,1749720642429,-403.86328583,0.00021369,4]
[365506819,1749720642438,-460.0,0.00021369,4]
[365506820,1749720642448,-584.30399615,0.00021369,4]
[365506821,1749720642457,-460.0,0.00021369,4]
[365506822,1749720642467,-460.0,0.00021369,4]
[365506823,1749720642477,-354.1987242,0.00021369,4]
[365506824,1749720642486,-427.88255377,0.00021369,4]
[365506825,1749720642495,-460.0,0.00021369,4]
[365506826,1749720642507,-460.0,0.00021369,4]
[365506827,1749720642516,-460.0,0.00021369,4]
[365506828,1749720642526,-460.0,0.00021369,4]
[365506829,1749720642536,-460.0,0.00021369,4]
[365506830,1749720642546,-460.0,0.00021369,4]
[365506831,1749720642555,-460.0,0.00021369,4]
[365506832,1749720642565,-384.11455287,0.00021369,4]
[365506833,1749720642574,-460.0,0.00021369,4]
[365506834,1749720642585,-460.0,0.00021369,4]
[365506835,1749720642594,-462.72220538,0.00021369,4]
[365506836,1749720642603,-460.0,0.00021369,4]
[365506837,1749720642613,-460.0,0.00021369,4]
[365506838,1749720642622,-460.0,0.00021369,4]
[365506839,1749720642631,-460.0,0.00021369,4]
[365506840,1749720642640,-460.0,0.00021369,4]
[365506841,1749720642649,-460.0,0.00021369,4]
[365506842,1749720642659,-460.0,0.00021369,4]
[365506843,1749720642668,-450.14068209,0.00021369,4]
[365506844,1749720642678,-534.31189285,0.00021369,4]
[365506845,1749720642687,-460.0,0.00021369,4]
[365506846,1749720642698,-460.0,0.00021369,4]
[365506847,1749720642707,-460.0,0.00021369,4]
[365506848,1749720642717,-460.0,0.00021369,4]
[365506849,1749720642726,-460.0,0.00021369,4]
[365506850,1749720642735,-460.0,0.00021369,4]
[365506851,1749720642744,-460.0,0.00021369,4]
[365506852,1749720642754,-460.0,0.00021369,4]
[365506853,1749720642763,-460.0,0.00021369,4]
[365506854,1749720642772,-410.0,0.00021369,4]
[365506855,1749720642781,-386.60299656,0.00021369,4]
[365506856,1749720642791,-460.0,0.00021369,4]
[365506857,1749720642801,-460.0,0.00021369,4]
[365506858,1749720642810,-460.0,0.00021369,4]
[365506859,1749720642820,-828.54,0.00021369,4]
[365506860,1749720642830,-460.0,0.00021369,4]
[365506861,1749720642840,-915.7,0.00021369,4]
[365506862,1749720642849,-460.0,0.00021369,4]
[365506863,1749720642859,-420.0,0.00021369,4]
[365506864,1749720642869,-460.0,0.00021369,4]
[365506865,1749720642879,-460.0,0.00021369,4]
[365506866,1749720642888,-596.82,0.00021369,4]
[365506867,1749720642897,-519.63,0.00021369,4]
[365506868,1749720642907,-383.24690289,0.00021369,4]
[365506870,1749720642916,-460.0,0.00021369,4]
[365506871,1749720642925,-460.0,0.00021369,4]
[365506872,1749720642936,-460.0,0.00021369,4]
[365506874,1749720642947,-460.0,0.00021369,4]
[365506876,1749720642956,-460.0,0.00021369,4]
[365506878,1749720642965,-179.67107615,0.00021369,4]
[365506880,1749720642974,-460.0,0.00021369,4]
[365506881,1749720642984,-460.0,0.00021369,4]
[365506883,1749720642993,-460.0,0.00021369,4]
[365506884,1749720643003,-460.0,0.00021369,4]
[365506885,1749720643012,-262.18874095,0.00021369,4]
[365506886,1749720643021,-460.0,0.00021369,4]
[365506887,1749720643031,-460.0,0.00021369,4]
[365506888,1749720643041,-460.0,0.00021369,4]
[365506889,1749720643050,-460.0,0.00021369,4]
[365506890,1749720643059,-460.0,0.00021369,4]
[365506891,1749720643068,-340.44059377,0.00021369,4]
[365506892,1749720643078,-460.0,0.00021369,4]
[365506893,1749720643087,-460.0,0.00021369,4]
[365506894,1749720643096,-460.0,0.00021369,4]
[365506895,1749720643106,-465.55897362,0.00021369,4]
[365506896,1749720643116,-420.0,0.00021369,4]
[365506897,1749720643125,-766.48,0.00021369,4]
[365506898,1749720643135,-431.00070563,0.00021369,4]
[365506899,1749720643144,-460.0,0.00021369,4]
[365506900,1749720643153,-460.0,0.00021369,4]
[365506901,1749720643162,-462.51542571,0.00021369,4]
[365506902,1749720643172,-460.0,0.00021369,4]
[365506903,1749720643181,-460.0,0.00021369,4]
[365506904,1749720643190,-460.0,0.00021369,4]
[365506905,1749720643199,-408.20626775,0.00021369,4]
[365506906,1749720643208,-460.0,0.00021369,4]
[365506907,1749720643217,-460.0,0.00021369,4]
[365506908,1749720643226,-460.0,0.00021369,4]
[365506909,1749720643235,-460.0,0.00021369,4]
[365506910,1749720643245,-460.0,0.00021369,4]
[365506911,1749720643254,-460.0,0.00021369,4]
[365506912,1749720643264,-460.0,0.00021369,4]
[365506913,1749720643273,-440.77526652,0.00021369,4]
[365506914,1749720643282,-464.95652163,0.00021369,4]
[365506915,1749720643290,-460.0,0.00021369,4]
[365506916,1749720643300,-552.73,0.00021369,4]
[365506917,1749720643309,-460.0,0.00021369,4]
[365506918,1749720643318,-460.0,0.00021369,4]
[365506919,1749720643327,-460.0,0.00021369,4]
[365506920,1749720643337,-460.0,0.00021369,4]
[365506921,1749720643347,-445.87324468,0.00021369,4]
[365506922,1749720643357,-460.0,0.00021369,4]
[365506923,1749720643367,-405.0,0.00021369,4]
[365506924,1749720643376,-460.0,0.00021369,4]
[365506925,1749720643385,-453.16113298,0.00021369,4]
[365506926,1749720643395,-460.0,0.00021369,4]
[365506927,1749720643404,-460.0,0.00021369,4]
[365506928,1749720643413,-1227.47,0.00021369,4]
[365506929,1749720643423,-460.0,0.00021369,4]
[365506930,1749720643432,-460.0,0.00021369,4]
[365506931,1749720643441,-460.0,0.00021369,4]
[365506932,1749720643450,-460.0,0.00021369,4]
[365506933,1749720643459,-460.0,0.00021369,4]
[365506934,1749720643468,-448.68684793,0.00021369,4]
[365506935,1749720643477,-460.0,0.00021369,4]
[365506936,1749720643487,-527.02,0.00021369,4]
[365506937,1749720643496,-460.0,0.00021369,4]
[365506938,1749720643508,-460.0,0.00021369,4]
[365506939,1749720643517,-460.0,0.00021369,4]
[365506940,1749720643526,-460.0,0.00021369,4]
[365506941,1749720643536,-1329.7,0.00021369,4]
[365506942,1749720643546,-460.0,0.00021369,4]
[365506943,1749720643555,-416.9858036,0.00021369,4]
[365506944,1749720643564,-444.19567875,0.00021369,4]
[365506945,1749720643574,-419.29493836,0.00021369,4]
[365506946,1749720643584,-460.0,0.00021369,4]
[365506947,1749720643593,-461.7221475,0.00021369,4]
[365506948,1749720643603,-460.0,0.00021369,4]
[365506949,1749720643612,-460.0,0.00021369,4]
[365506950,1749720643622,-460.0,0.00021369,4]
[365506951,1749720643631,-460.0,0.00021369,4]
[365506952,1749720643640,-1011.31,0.00021369,4]
[365506953,1749720643649,-460.0,0.00021369,4]
[365506954,1749720643658,-460.0,0.00021369,4]
[365506955,1749720643668,-460.0,0.00021369,4]
[365506956,1749720643677,-460.0,0.00021369,4]
[365506957,1749720643686,-565.92,0.00021369,4]
[365506958,1749720643696,-460.0,0.00021369,4]
[365506959,1749720643705,-460.0,0.00021369,4]
[365506960,1749720643713,-420.0,0.00021369,4]
[365506961,1749720643722,-460.0,0.00021369,4]
[365506962,1749720643731,-471.62,0.00021369,4]
[365506963,1749720643741,-1078.77,0.00021369,4]
[365506964,1749720643750,-460.0,0.00021369,4]
[365506965,1749720643759,-460.0,0.00021369,4]
[365506966,1749720643768,-460.0,0.00021369,4]
[365506967,1749720643777,-448.35475207,0.00021369,4]
[365506968,1749720643786,-1101.83,0.00021369,4]
[365506969,1749720643795,-1242.04,0.00021369,4]
[365506970,1749720643804,-460.0,0.00021369,4]
[365506971,1749720643813,-460.0,0.00021369,4]
[365506972,1749720643823,-460.0,0.00021369,4]
[365506973,1749720643833,-460.0,0.00021369,4]
[365506974,1749720643841,-460.0,0.00021369,4]
[365506975,1749720643850,-316.81446686,0.00021369,4]
[365506976,1749720643859,-460.0,0.00021369,4]
[365506977,1749720643868,-460.0,0.00021369,4]
[365506978,1749720643877,-346.31845381,0.00021369,4]
[365506979,1749720643886,-500.0,0.00021375,2]
[365506980,1749720643895,-287.51386142,0.00021429,2]
[365506981,1749720643904,-500.0,0.00021429,2]
[365506982,1749720643913,-207.4,0.00021437,2]
[365506983,1749720643922,-1688.0,0.00021437,2]
[365506984,1749720643932,-5000.0,0.00021437,2]
[365506985,1749720643942,-500.0,0.00021439,2]
[365506986,1749720643951,-500.0,0.00021439,2]
[365506987,1749720643960,-500.0,0.00021439,2]
[365506988,1749720643969,-541.34304117,0.00021439,2]
[365506989,1749720643978,-500.0,0.00021439,2]
[365506990,1749720643988,-500.0,0.00021439,2]
[365506991,1749720643997,-502.21576639,0.00021439,2]
[365506992,1749720644007,-367.89843496,0.00021439,2]
[365506993,1749720644015,-500.0,0.00021439,2]
[365506994,1749720644024,-1050.97975101,0.00021452,5]
[365506995,1749720644033,-1806.51976404,0.00021492,2]
[365506996,1749720644042,-500.0,0.00021512,2]
[365506997,1749720644052,-175.0,0.00021561,2]
[365506998,1749720644061,-175.0,0.00021605,2]
[365506999,1749720644070,-160.230216,0.00021607,2]
[365507000,1749720644079,-500.0,0.00021621,2]
[365507001,1749720644089,-1000.0,0.00021621,2]
[365507002,1749720644184,-500.0,0.00021621,2]
[365507003,1749720644194,-512.18749651,0.00021621,2]
[365507004,1749720644203,-1050.97975101,0.00021624,5]
[365507005,1749720644213,-803.38949638,0.00021643,2]
[365507006,1749720644222,-3885.50435525,0.00021643,2]
[365507007,1749720644231,-500.0,0.00021643,4]
[365507008,1749720644241,-460.0,0.00021643,4]
[365507009,1749720644249,-460.0,0.00021643,4]
[365507010,1749720644259,-376.68675692,0.00021643,4]
[365507011,1749720644268,-460.0,0.00021643,2]
[365507012,1749720644277,-460.0,0.00021643,4]
[365507013,1749720644285,-444.34380485,0.00021643,4]
[365507014,1749720644295,-190.84100457,0.00021643,4]
[365507015,1749720644304,-460.0,0.00021643,4]
[365507016,1749720644313,-460.0,0.00021643,4]
[365507017,1749720644322,-460.0,0.00021643,4]
[365507018,1749720644331,-460.0,0.00021643,4]
[365507019,1749720644340,-460.0,0.00021643,4]
[365507020,1749720644349,-440.0,0.00021643,4]
[365507021,1749720644359,-460.0,0.00021643,4]
[365507022,1749720644368,-460.0,0.00021643,4]
[365507023,1749720644378,-440.0,0.00021643,4]
[365507024,1749720644387,-460.0,0.00021643,4]
[365507025,1749720644397,-298.95562093,0.00021643,4]
[365507026,1749720644406,-460.0,0.00021643,4]
[365507027,1749720644415,-460.0,0.00021643,4]
[365507028,1749720644424,-460.0,0.00021643,4]
[365507029,1749720644434,-460.0,0.00021643,4]
[365507030,1749720644443,-457.09890554,0.00021643,4]
[365507031,1749720644452,-460.0,0.00021643,4]
[365507032,1749720644461,-460.0,0.00021643,4]
[365507033,1749720644470,-460.0,0.00021643,4]
[365507034,1749720644479,-460.0,0.00021643,4]
[365507035,1749720644488,-460.0,0.00021643,4]
[365507036,1749720644497,-460.0,0.00021643,4]
[365507037,1749720644511,-460.0,0.00021643,4]
[365507038,1749720644520,-460.0,0.00021643,4]
[365507039,1749720644529,-460.0,0.00021643,4]
[365507040,1749720644538,-460.0,0.00021643,4]
[365507041,1749720644547,-460.0,0.00021643,4]
[365507042,1749720644558,-460.0,0.00021643,4]
[365507043,1749720644567,-460.0,0.00021643,4]
[365507044,1749720644576,-460.0,0.00021643,4]
[365507045,1749720644587,-460.0,0.00021643,4]
[365507046,1749720644597,-460.0,0.00021643,4]
[365507047,1749720644606,-828.54,0.00021643,4]
[365507048,1749720644615,-460.0,0.00021643,4]
[365507049,1749720644624,-915.7,0.00021643,4]
[365507050,1749720644633,-410.49226352,0.00021643,4]
[365507051,1749720644642,-460.0,0.00021643,4]
[365507052,1749720644651,-596.82,0.00021643,4]
[365507053,1749720644660,-460.0,0.00021643,4]
[365507054,1749720644669,-519.63,0.00021643,4]
[365507055,1749720644679,-402.43239032,0.00021643,4]
[365507056,1749720644688,-271.42680196,0.00021643,4]
[365507057,1749720644699,-460.0,0.00021643,4]
[365507058,1749720644708,-460.0,0.00021643,4]
[365507059,1749720644717,-460.0,0.00021643,4]
[365507060,1749720644727,-460.0,0.00021643,4]
[365507061,1749720644736,-460.0,0.00021643,4]
[365507062,1749720644746,-460.0,0.00021643,4]
[365507063,1749720644755,-460.0,0.00021643,4]
[365507064,1749720644763,-460.0,0.00021643,4]
[365507065,1749720644773,-372.53739557,0.00021643,4]
[365507066,1749720644782,-398.23627875,0.00021643,4]
[365507067,1749720644791,-460.0,0.00021643,4]
[365507068,1749720644800,-460.0,0.00021643,4]
[365507069,1749720644810,-460.0,0.00021643,4]
[365507070,1749720644818,-460.0,0.00021643,4]
[365507071,1749720644828,-766.48,0.00021643,4]
[365507072,1749720644837,-460.0,0.00021643,4]
[365507073,1749720644846,-460.0,0.00021643,4]
[365507074,1749720644854,-460.0,0.00021643,4]
[365507075,1749720644864,-460.0,0.00021643,4]
[365507076,1749720644873,-460.0,0.00021643,4]
[365507077,1749720644882,-460.0,0.00021643,4]
[365507078,1749720644891,-460.0,0.00021643,4]
[365507079,1749720644900,-460.0,0.00021643,4]
[365507080,1749720644909,-460.0,0.00021643,4]
[365507081,1749720644918,-460.0,0.00021643,4]
[365507082,1749720644927,-460.0,0.00021643,4]
[365507083,1749720644936,-460.0,0.00021643,4]
[365507084,1749720644947,-512.57331536,0.00021643,4]
[365507085,1749720644956,-552.73,0.00021643,4]
[365507086,1749720644965,-460.0,0.00021643,4]
[365507087,1749720644974,-460.0,0.00021643,4]
[365507088,1749720644984,-460.0,0.00021643,4]
[365507089,1749720644993,-460.0,0.00021643,4]
[365507090,1749720645001,-460.0,0.00021643,4]
[365507091,1749720645011,-429.77487599,0.00021643,4]
[365507092,1749720645019,-1227.47,0.00021643,4]
[365507093,1749720645029,-460.0,0.00021643,4]
[365507094,1749720645038,-460.0,0.00021643,4]
[365507095,1749720645047,-460.0,0.00021643,4]
[365507096,1749720645056,-460.0,0.00021643,4]
[365507097,1749720645065,-460.0,0.00021643,4]
[365507098,1749720645073,-527.02,0.00021643,4]
[365507099,1749720645082,-460.0,0.00021643,4]
[365507100,1749720645091,-460.0,0.00021643,4]
[365507101,1749720645100,-460.0,0.00021643,4]
[365507102,1749720645109,-460.0,0.00021643,4]
[365507103,1749720645118,-1329.7,0.00021643,4]
[365507104,1749720645127,-460.0,0.00021643,4]
[365507105,1749720645136,-460.0,0.00021643,4]
[365507106,1749720645145,-460.0,0.00021643,4]
[365507107,1749720645155,-460.0,0.00021643,4]
[365507108,1749720645164,-460.0,0.00021643,4]
[365507109,1749720645173,-460.0,0.00021643,4]
[365507110,1749720645182,-1011.31,0.00021643,4]
[365507111,1749720645191,-460.0,0.00021643,4]
[365507112,1749720645201,-460.0,0.00021643,4]
[365507113,1749720645210,-460.0,0.00021643,4]
[365507114,1749720645219,-460.0,0.00021643,4]
[365507115,1749720645228,-565.92,0.00021643,4]
[365507116,1749720645237,-460.0,0.00021643,4]
[365507117,1749720645246,-460.0,0.00021643,4]
[365507118,1749720645255,-460.0,0.00021643,4]
[365507119,1749720645264,-471.62,0.00021643,4]
[365507120,1749720645273,-1078.77,0.00021643,4]
[365507121,1749720645282,-460.0,0.00021643,4]
[365507122,1749720645291,-460.0,0.00021643,4]
[365507123,1749720645300,-460.0,0.00021643,4]
[365507124,1749720645309,-1242.04,0.00021643,4]
[365507125,1749720645318,-1101.83,0.00021643,4]
[365507126,1749720645327,-370.0,0.00021643,4]
[365507127,1749720645336,-460.0,0.00021643,4]
[365507128,1749720645345,-438.89725935,0.00021643,4]
[365507129,1749720645354,-460.0,0.00021643,4]
[365507130,1749720645363,-460.0,0.00021643,4]
[365507131,1749720645371,-463.53,0.00021643,4]
[365507132,1749720645381,-460.0,0.00021643,4]
[365507133,1749720645390,-1000.05332043,0.00021675,2]
[365507134,1749720645399,-929.7,0.000217,2]
[365507135,1749720645409,-174.69072823,0.00021719,2]
[365507136,1749720645418,-331.3,0.00021788,5]
[365507137,1749720645428,-1050.97975101,0.00021797,6]
[365507138,1749720645438,-4722.5,0.000218,2]
[365507139,1749720645448,-3026.0,0.00021829,2]
[365507140,1749720645458,-175.0,0.00021837,2]
[365507141,1749720645467,-1000.0,0.00021915,2]
[365507142,1749720645477,-500.0,0.00021915,2]
[365507143,1749720645487,-460.0,0.00021917,4]
[365507144,1749720645496,-460.0,0.00021917,2]
[365507145,1749720645510,-329.41,0.00021917,4]
[365507146,1749720645519,-460.0,0.00021917,4]
[365507147,1749720645528,-460.0,0.00021917,4]
[365507148,1749720645538,-460.0,0.00021917,4]
[365507149,1749720645549,-460.0,0.00021917,4]
[365507150,1749720645559,-460.0,0.00021917,4]
[365507151,1749720645568,-460.0,0.00021917,4]
[365507152,1749720645577,-256.65091052,0.00021917,4]